bitfinex/quotes_ETHUSD_20240819
["timestamp","ask_amount","ask_price","bid_price","bid_amount"]
[1724059118628,0.79851593,2622.6,2622.5,11.5763]
[1724059118867,3.82719494,2623.4,2622.5,11.5763]
[1724059118868,0.79851593,2623.1,2622.9,6.08047]
[1724059119067,0.79851593,2623.1,2623.0,9.89274]
[1724059119374,0.79851593,2623.4,2623.3,2.4718]
[1724059119575,0.79851593,2623.5,2623.3,6.28379]
[1724059119763,0.79851593,2623.6,2623.3,2.4718]
[1724059119961,0.79851593,2623.5,2623.3,2.4718]
[1724059120203,0.9332001,2623.4,2623.3,6.28374]
[1724059120502,0.79851593,2623.6,2623.4,6.28363]
[1724059120716,0.9332001,2623.5,2623.4,6.28363]
[1724059121294,0.79851593,2623.6,2623.4,2.4718]
[1724059121470,0.9332001,2623.5,2623.4,2.4718]
[1724059121927,0.79851593,2623.7,2623.4,2.4718]
[1724059122087,0.9332001,2623.6,2623.4,2.4718]
[1724059122780,0.79851593,2623.8,2623.4,2.4718]
[1724059122974,0.9332001,2623.7,2623.4,2.4718]
[1724059123703,4.60963593,2623.9,2623.4,2.4718]
[1724059123866,0.9332001,2623.8,2623.4,7.293211]
[1724059124370,0.9332001,2623.8,2623.6,2.2836]
[1724059124810,4.60952593,2624.0,2623.6,2.2836]
[1724059125009,0.9332001,2623.7,2623.6,2.2836]
[1724059125209,4.60952593,2624.0,2623.6,2.2836]
[1724059125477,3.81101,2624.0,2623.6,2.2836]
[1724059125724,0.9332001,2623.9,2623.6,2.2836]
[1724059126586,0.9332001,2623.9,2623.8,6.23776]
[1724059126786,0.9332001,2623.9,2623.8,9.94332]
[1724059131179,7.34,2624.3,2623.9,3.8111]
[1724059132581,9.25665,2624.5,2623.9,3.8111]
[1724059133719,3.8104,2624.4,2623.9,3.8111]
[1724059134497,3.8104,2624.4,2623.8,9.94323]
[1724059135220,0.89078191,2624.3,2623.8,9.94323]
[1724059135399,0.89078191,2624.3,2623.8,11.101153]
[1724059135595,0.89078191,2624.3,2623.8,7.289893]
[1724059136322,0.89078191,2624.3,2623.8,11.101083]
[1724059137217,0.89078191,2624.3,2623.9,3.8111]
[1724059137709,9.25666,2624.5,2623.9,3.8111]
[1724059137861,0.89078191,2624.2,2623.9,3.8111]
[1724059138013,5.44632,2624.5,2624.0,1.1100993]
[1724059138220,0.89078191,2624.1,2624.0,3.4978993]
[1724059138419,5.44632,2624.5,2624.0,2.3878]
[1724059138720,9.25665,2624.5,2624.0,2.3878]
[1724059138915,0.89078191,2624.4,2624.0,2.3878]
[1724059139853,0.89078191,2624.4,2624.2,2.3793]
[1724059140235,3.81001,2624.7,2624.2,6.18997]
[1724059140434,0.89078191,2624.3,2624.2,6.18997]
[1724059140618,3.82511294,2624.9,2624.2,6.18997]
[1724059140826,0.89078191,2624.3,2624.2,6.18997]
[1724059141074,3.80997,2624.7,2624.2,7.2901377]
[1724059141288,0.89078191,2624.3,2624.2,7.2901377]
[1724059141491,3.80997,2624.7,2624.2,7.2901377]
[1724059141643,0.89078191,2624.3,2624.2,6.18997]
[1724059141842,3.80997,2624.7,2624.2,6.18997]
[1724059142107,0.89078191,2624.3,2624.2,6.18997]
[1724059142244,3.81026,2624.5,2624.0,2.4535]
[1724059142449,7.62062,2624.5,2624.0,2.4535]
[1724059142995,0.89078191,2624.4,2624.0,6.26445]
[1724059143403,0.89078191,2624.4,2624.0,2.4535]
[1724059144381,3.81058,2624.3,2623.9,3.0]
[1724059144548,3.81058,2624.3,2623.8,3.0]
[1724059144945,6.33755191,2624.2,2623.7,2.3739]
[1724059145144,3.81084,2624.1,2623.7,2.3739]
[1724059145560,0.89078191,2624.0,2623.7,2.3739]
[1724059146649,7.62177,2624.1,2623.6,3.0]
[1724059146955,3.81084,2624.1,2623.6,3.0]
[1724059147167,0.89078191,2624.0,2623.6,3.0]
[1724059147369,4.70176191,2624.0,2623.6,3.0]
[1724059147985,4.70176191,2624.0,2623.5,8.026026]
[1724059148287,4.70176191,2624.0,2623.5,6.06608]
[1724059150882,0.89078191,2624.0,2623.5,9.8777]
[1724059151419,0.89078191,2624.0,2623.6,3.81154]
[1724059152330,4.70177191,2624.0,2623.5,2.2545]
[1724059152465,6.55459119,2623.9,2623.3,6.81185]
[1724059152671,6.55459119,2623.9,2623.4,3.81177]
[1724059153217,0.89078191,2623.8,2623.4,3.81177]
[1724059155899,0.89078191,2623.8,2623.3,10.62375]
[1724059156676,0.89078191,2623.8,2623.3,10.62377]
[1724059157487,0.89078191,2623.8,2623.4,3.81182]
[1724059160484,0.89078191,2623.8,2623.5,3.81169]
[1724059161008,4.60477023,2624.0,2623.4,6.908797]
[1724059161210,1.68455214,2623.9,2623.4,6.908797]
[1724059161410,1.68455214,2623.9,2623.4,5.44784]
[1724059162429,0.79377023,2623.8,2623.4,5.44784]
[1724059162786,0.89078191,2623.7,2623.4,5.44784]
[1724059163530,1.68455214,2623.7,2623.4,5.44784]
[1724059164424,0.79377023,2623.6,2623.4,5.44784]
[1724059164604,0.79377023,2623.6,2623.4,6.908799]
[1724059165021,0.89078191,2623.5,2623.4,6.908799]
[1724059167615,0.89078191,2623.5,2623.4,5.272799]
[1724059167783,0.89078191,2623.5,2623.4,3.81184]
[1724059168717,0.89078191,2623.5,2623.3,6.81185]
[1724059169725,0.89078191,2623.5,2623.3,10.62377]
[1724059169892,0.89078191,2623.5,2623.3,6.81185]
[1724059170092,0.89078191,2623.5,2623.3,10.62377]
[1724059170301,0.89078191,2623.5,2623.3,6.81185]
[1724059170832,1.68455214,2623.5,2623.3,3.0]
[1724059171006,1.68455214,2623.5,2623.2,7.79803]
[1724059172127,1.68455214,2623.5,2623.3,3.81198]
[1724059175431,1.68455214,2623.5,2623.2,7.79802]
[1724059175932,1.68455214,2623.5,2623.2,6.16202]
[1724059179133,1.68455214,2623.5,2623.2,3.81212]
[1724059180310,0.79377023,2623.4,2623.1,3.81218]
[1724059180513,0.79377023,2623.4,2622.9,3.81245]
[1724059180514,0.79377023,2623.3,2622.9,6.12318]
[1724059180824,0.89078191,2623.2,2622.9,6.12318]
[1724059181024,0.79377023,2623.3,2622.9,6.12318]
[1724059181335,0.89078191,2623.2,2622.9,3.81248]
[1724059181534,1.68455214,2623.2,2622.8,11.15257]
[1724059181735,1.68455214,2623.2,2622.9,3.0]
[1724059181736,0.79377023,2623.1,2622.9,3.0]
[1724059182042,1.68455214,2623.1,2622.9,3.0]
[1724059182937,1.68455214,2623.1,2622.7,2.3504]
[1724059183142,1.68455214,2623.1,2622.7,3.0]
[1724059183541,0.79377023,2623.0,2622.6,3.81292]
[1724059183731,4.60620023,2623.0,2622.5,6.23523]
[1724059183927,0.79377023,2622.9,2622.4,1.636]
[1724059184132,1.68455214,2622.9,2622.3,6.2875]
[1724059184535,5.49713214,2622.9,2622.4,3.81322]
[1724059185243,1.68455214,2622.9,2622.5,3.81314]
[1724059185418,0.89078191,2622.9,2622.5,3.81314]
[1724059186449,0.89078191,2622.9,2622.5,3.81308]
[1724059187034,0.89078191,2622.9,2622.6,3.81299]
[1724059189924,0.79675955,2623.0,2622.6,3.81299]
[1724059190126,0.89078191,2622.8,2622.6,3.81299]
[1724059190434,0.79675955,2623.0,2622.6,3.81299]
[1724059190435,0.89078191,2622.7,2622.6,3.81299]
[1724059190648,0.79675955,2623.0,2622.6,3.81299]
[1724059190959,0.89078191,2622.9,2622.6,3.81299]
[1724059191343,0.89078191,2622.9,2622.4,9.26245]
[1724059191526,0.89078191,2622.9,2622.5,3.81313]
[1724059199278,0.89078191,2622.9,2622.5,8.879121]
[1724059199787,0.89078191,2622.9,2622.5,8.879071]
[1724059200891,0.89078191,2622.9,2622.5,5.065991]
[1724059201687,0.89078191,2622.9,2622.5,3.81308]
[1724059201919,0.89078191,2622.9,2622.3,5.44937]
[1724059201920,2.2935,2622.7,2622.3,5.44937]
[1724059202363,2.2935,2622.7,2622.3,5.44936]
[1724059202565,0.89078191,2622.6,2622.3,5.44936]
[1724059203353,0.89078191,2622.6,2622.4,3.81322]
[1724059203577,0.89078191,2622.6,2622.4,5.039478]
[1724059203757,6.13068,2622.9,2622.4,5.039478]
[1724059203967,0.89078191,2622.5,2622.4,3.81322]
[1724059204178,6.13068,2622.9,2622.4,3.81322]
[1724059204586,0.89078191,2622.8,2622.4,6.27042]
[1724059207601,4.70351191,2622.8,2622.4,6.27042]
[1724059209069,0.89078191,2622.8,2622.4,6.27042]
[1724059209296,0.89078191,2622.8,2622.6,3.813]
[1724059209684,0.89078191,2622.7,2622.6,3.813]
[1724059209886,6.10768,2623.1,2622.5,2.426642]
[1724059209887,3.09215955,2623.1,2622.5,2.426642]
[1724059210101,3.09215955,2623.1,2622.7,3.81285]
[1724059210102,0.79675955,2623.1,2622.7,3.81285]
[1724059210308,5.00730933,2623.2,2622.7,3.81285]
[1724059210309,0.79675955,2623.0,2622.7,3.81285]
[1724059211101,0.79675955,2623.1,2622.7,1.636]
[1724059211287,0.79675955,2623.3,2623.1,3.81228]
[1724059211488,0.79675955,2623.4,2623.1,3.81228]
[1724059212422,0.79675955,2623.4,2622.9,11.54979]
[1724059212910,0.79675955,2623.4,2622.9,9.91368]
[1724059213105,0.79675955,2623.3,2622.9,9.91368]
[1724059213489,0.79675955,2623.4,2623.0,3.81242]
[1724059214118,0.79675955,2623.3,2623.0,3.81242]
[1724059214718,0.79675955,2623.4,2623.1,3.81226]
[1724059215981,0.79675955,2623.4,2623.1,3.81215]
[1724059216190,0.79675955,2623.5,2623.2,3.81212]
[1724059216401,0.79675955,2623.5,2623.1,3.81215]
[1724059216812,4.60831955,2623.6,2623.1,3.81215]
[1724059217226,0.79675955,2623.5,2623.1,3.81215]
[1724059217392,0.79675955,2623.5,2623.1,5.0444633]
[1724059218094,4.60831955,2623.6,2623.1,5.0444633]
[1724059218315,0.79675955,2623.5,2623.1,5.0444633]
[1724059219629,0.79675955,2623.5,2623.1,8.8566733]
[1724059219924,0.79675955,2623.5,2623.1,5.0444633]
[1724059220160,0.79675955,2623.5,2623.2,6.57195633]
[1724059220300,0.79675955,2623.7,2623.4,3.81173]
[1724059220696,0.79675955,2623.7,2623.5,3.81161]
[1724059222034,0.79675955,2623.7,2623.4,3.81173]
[1724059225095,0.89078191,2623.6,2623.4,3.81173]
[1724059226204,0.89078191,2623.6,2623.4,7.6235]
[1724059226411,0.89078191,2623.6,2623.4,3.81173]
[1724059229329,0.79675955,2623.8,2623.4,3.81173]
[1724059229530,0.79675955,2623.8,2623.2,6.57188633]
[1724059229531,0.89078191,2623.5,2623.2,3.81204]
[1724059229732,0.79675955,2623.6,2623.2,3.81204]
[1724059229906,0.89078191,2623.4,2623.2,3.81204]
[1724059230108,0.79675955,2623.6,2623.2,3.81204]
[1724059230309,0.89078191,2623.3,2623.2,3.81204]
[1724059230511,0.79675955,2623.6,2623.2,6.81204]
[1724059230731,0.89078191,2623.3,2623.2,6.81204]
[1724059231031,4.60830955,2623.6,2623.2,3.0]
[1724059231235,0.89078191,2623.3,2623.2,3.0]
[1724059231398,4.60830955,2623.6,2623.2,3.0]
[1724059231964,0.89078191,2623.5,2623.2,6.81213]
[1724059234363,0.89078191,2623.5,2623.2,3.0]
[1724059234534,0.89078191,2623.5,2623.1,3.0]
[1724059234734,3.81186,2623.4,2622.9,2.2762]
[1724059234946,3.81186,2623.4,2622.8,3.81258]
[1724059234947,6.95594955,2623.3,2622.8,3.81263]
[1724059235330,3.81235,2623.1,2622.5,2.2729]
[1724059235541,3.81235,2623.1,2622.6,3.813]
[1724059235542,0.54998915,2623.0,2622.6,3.813]
[1724059235976,0.89078191,2622.9,2622.6,3.813]
[1724059236627,0.89078191,2622.9,2622.6,1.636]
[1724059236966,0.79675955,2623.1,2622.7,3.81286]
[1724059237134,0.89078191,2622.8,2622.7,3.81286]
[1724059237334,0.79675955,2623.1,2622.7,3.81286]
[1724059237561,0.89078191,2623.0,2622.7,7.62565]
[1724059237763,0.89078191,2623.0,2622.7,3.81279]
[1724059239576,0.89078191,2623.0,2622.8,4.0558]
[1724059239864,0.79675955,2623.3,2622.8,7.86844]
[1724059239865,4.60875955,2623.3,2622.8,7.86844]
[1724059240069,0.89078191,2622.9,2622.8,7.86844]
[1724059240240,4.60875955,2623.3,2622.8,9.036563]
[1724059240442,0.89078191,2623.2,2622.8,9.036563]
[1724059240837,4.60875955,2623.3,2622.8,9.036563]
[1724059241037,0.89078191,2623.2,2622.8,9.036563]
[1724059241252,4.60875955,2623.3,2622.8,9.036563]
[1724059241459,0.89078191,2623.2,2622.9,3.81256]
[1724059241657,0.79675955,2623.3,2622.9,3.81256]
[1724059241934,0.89078191,2623.1,2622.8,5.223923]
[1724059242134,4.60876955,2623.3,2622.8,5.223923]
[1724059242335,0.89078191,2623.0,2622.8,5.223923]
[1724059242554,4.60876955,2623.3,2622.8,5.223923]
[1724059242770,0.89078191,2622.9,2622.8,5.223923]
[1724059242967,4.60876955,2623.3,2622.8,9.036613]
[1724059243159,0.89078191,2622.9,2622.8,9.036613]
[1724059243361,0.79675955,2623.2,2622.8,9.036613]
[1724059243670,0.89078191,2623.1,2622.8,9.036613]
[1724059250681,0.89078191,2623.1,2622.8,7.86849]
[1724059250977,1.68754146,2623.1,2622.8,6.23249]
[1724059252768,1.68754146,2623.1,2622.8,3.81269]
[1724059257242,1.68754146,2623.1,2622.9,2.3595]
[1724059257448,1.68754146,2623.1,2622.9,7.170464]
[1724059257684,0.89078191,2623.1,2622.9,7.170464]
[1724059258183,0.89078191,2623.1,2623.0,11.72094]
[1724059258557,0.79675955,2623.4,2623.3,2.4368]
[1724059258882,0.79675955,2623.4,2623.3,3.061693]
[1724059259050,0.79675955,2623.4,2623.3,2.4368]
[1724059259864,1.19513933,2623.6,2623.3,2.4368]
[1724059259865,0.79675955,2623.5,2623.3,2.4368]
[1724059260052,0.79675955,2623.4,2623.3,2.4368]
[1724059262190,0.79675955,2623.4,2623.2,3.81207]
[1724059263995,0.79675955,2623.4,2623.2,7.62413]
[1724059264292,0.79675955,2623.4,2623.2,3.81206]
[1724059264873,0.79675955,2623.3,2623.2,3.81206]
[1724059265067,0.79675955,2623.3,2623.0,7.62462]
[1724059265686,0.79675955,2623.3,2623.1,3.81225]
[1724059265881,0.79675955,2623.3,2622.8,3.8126]
[1724059265882,3.25055955,2623.2,2622.8,3.8126]
[1724059266223,0.79787434,2623.0,2622.9,3.0]
[1724059266414,0.79787434,2623.1,2622.9,3.0]
[1724059266914,0.79787434,2623.1,2622.9,6.8125]
[1724059268020,0.79787434,2623.2,2623.0,3.81242]
[1724059268921,0.79787434,2623.1,2623.0,3.81242]
[1724059269299,0.79787434,2623.2,2623.0,3.81242]
[1724059270131,0.89078191,2623.1,2623.0,3.81242]
[1724059272407,0.89078191,2623.1,2623.0,10.726942]
[1724059272800,0.79787434,2623.4,2623.3,3.81199]
[1724059276917,1.19513933,2623.4,2623.3,3.81199]
[1724059278523,1.19513933,2623.5,2623.3,3.81199]
[1724059281422,0.79843905,2623.4,2623.3,3.81199]
[1724059281931,1.19513933,2623.5,2623.3,3.81199]
[1724059283825,1.19513933,2623.5,2623.2,3.81212]
[1724059284041,0.79847631,2623.3,2623.2,3.81212]
[1724059284653,0.79847631,2623.4,2623.2,3.81212]
[1724059285163,0.89078191,2623.3,2623.2,3.81212]
[1724059286618,1.68925822,2623.3,2623.2,3.81212]
[1724059287032,0.89078191,2623.3,2623.2,3.81212]
[1724059291542,1.68925822,2623.3,2623.2,3.81212]
[1724059294351,1.68925822,2623.3,2623.1,6.15667]
[1724059295716,1.68925822,2623.3,2623.2,3.81213]
[1724059300257,1.68968547,2623.3,2623.2,3.81213]
[1724059300623,0.89078191,2623.3,2623.2,3.81213]
[1724059301622,2.08592124,2623.3,2623.2,3.81213]
[1724059301829,0.89078191,2623.3,2623.2,3.81213]
[1724059302357,2.08592124,2623.3,2623.2,3.81213]
[1724059302720,0.89078191,2623.3,2622.9,6.81256]
[1724059302924,0.79897146,2623.0,2622.9,6.81256]
[1724059303344,1.68975337,2623.0,2622.9,6.81256]
[1724059303750,0.89078191,2623.0,2622.9,6.81256]
[1724059303924,1.68975337,2623.0,2622.9,6.81256]
[1724059305052,0.89078191,2623.0,2622.9,6.81256]
[1724059305428,1.68975337,2623.0,2622.9,6.81256]
[1724059308176,0.89078191,2623.0,2622.9,6.81256]
[1724059308339,1.68975337,2623.0,2622.9,6.81256]
[1724059309143,0.89078191,2623.0,2622.9,6.81256]
[1724059309357,1.68975337,2623.0,2622.9,6.81256]
[1724059310434,1.68975337,2623.0,2622.9,8.44856]
[1724059310435,0.89078191,2623.0,2622.9,8.44856]
[1724059310778,0.89078191,2623.0,2622.9,13.885027]
[1724059313177,2.2809,2623.4,2623.0,3.81237]
[1724059313336,3.81172,2623.5,2623.0,3.81237]
[1724059314179,3.81172,2623.5,2623.1,6.15196]
[1724059315162,0.89078191,2623.4,2623.1,6.15196]
[1724059315475,0.89078191,2623.4,2623.1,2.3397]
[1724059317849,0.89078191,2623.4,2623.1,6.15197]
[1724059318391,0.89078191,2623.4,2623.0,3.81242]
[1724059319368,3.8582121,2623.4,2623.0,3.81242]
[1724059320090,1.6074121,2623.4,2623.0,3.81242]
[1724059320261,0.89078191,2623.4,2623.1,3.81227]
[1724059320674,6.06237,2623.6,2623.1,3.81227]
[1724059320880,0.89078191,2623.3,2623.1,3.81227]
[1724059321050,6.06237,2623.6,2623.1,3.81227]
[1724059321253,0.89078191,2623.2,2623.1,3.81227]
[1724059321450,6.06237,2623.6,2623.1,3.81227]
[1724059321652,0.89078191,2623.2,2623.1,3.81227]
[1724059321856,6.06237,2623.6,2623.1,3.81227]
[1724059322051,0.89078191,2623.2,2623.1,3.81227]
[1724059322267,6.06237,2623.6,2623.1,3.81227]
[1724059322490,0.89078191,2623.2,2623.1,3.81227]
[1724059322953,6.06237,2623.6,2623.1,3.81227]
[1724059323157,0.89078191,2623.2,2623.1,3.81227]
[1724059323358,0.987389,2623.5,2623.1,3.81227]
[1724059323577,0.89078191,2623.2,2623.1,3.81227]
[1724059323882,3.81152,2623.7,2623.3,3.81199]
[1724059324487,1.5987639,2623.4,2623.3,3.81199]
[1724059324888,1.5987639,2623.4,2623.2,3.81212]
[1724059325092,1.19907676,2623.3,2623.2,3.81212]
[1724059325291,1.5987639,2623.4,2623.2,3.81212]
[1724059325489,1.199164,2623.3,2623.2,3.81212]
[1724059326093,1.19915471,2623.3,2623.2,3.81212]
[1724059326330,1.5987639,2623.3,2623.0,2.4223]
[1724059326497,1.99845488,2623.4,2623.0,3.81236]
[1724059326498,1.19912669,2623.1,2623.0,3.81236]
[1724059329580,1.19912669,2623.1,2622.9,6.81256]
[1724059329873,1.19912669,2623.1,2622.9,3.0]
[1724059329874,1.19918662,2623.1,2622.9,3.0]
[1724059330098,0.79944086,2623.0,2622.9,3.0]
[1724059330287,2.08996853,2623.0,2622.9,3.0]
[1724059331992,2.08996853,2623.0,2622.9,6.81257]
[1724059332515,2.08996853,2623.0,2622.6,7.34]
[1724059332516,8.17646853,2623.0,2622.6,7.34]
[1724059332741,1.19918662,2622.7,2622.3,9.6321]
[1724059332885,0.79928026,2622.5,2622.3,13.44553]
[1724059333085,0.79928026,2622.6,2622.3,13.44553]
[1724059333325,0.89078191,2622.4,2622.3,15.335035]
[1724059333497,0.79928026,2622.6,2622.3,7.995035]
[1724059333691,0.79928026,2622.6,2622.4,1.636]
[1724059335811,0.79928026,2622.7,2622.4,1.636]
[1724059336018,0.79928026,2622.6,2622.4,1.636]
[1724059337195,0.79928026,2622.7,2622.4,1.636]
[1724059341848,0.79928026,2622.6,2622.4,1.636]
[1724059342650,0.79928026,2622.6,2622.3,2.2921]
[1724059342814,0.79928026,2622.6,2622.3,3.0]
[1724059343019,0.79928026,2622.6,2622.3,6.81344]
[1724059343441,0.79928026,2622.5,2622.1,3.8137]
[1724059344250,9.63212932,2622.6,2622.1,3.8137]
[1724059344453,0.79928026,2622.5,2622.1,3.8137]
[1724059344626,0.79928026,2622.5,2622.1,7.62737]
[1724059344833,0.79928026,2622.5,2622.1,3.81367]
[1724059345242,0.89078191,2622.4,2622.1,3.81367]
[1724059345419,8.42545026,2622.6,2622.1,3.81367]
[1724059345623,0.89078191,2622.3,2622.1,3.81367]
[1724059345843,4.61236026,2622.6,2622.1,3.81367]
[1724059346123,0.89078191,2622.2,2622.1,3.81367]
[1724059346326,4.61236026,2622.6,2622.1,6.81367]
[1724059346627,8.42550026,2622.6,2622.1,3.81367]
[1724059346832,1.69006217,2622.5,2622.1,3.81367]
[1724059347240,0.89078191,2622.5,2622.1,3.81367]
[1724059347443,5.50322217,2622.5,2622.0,5.44986]
[1724059347660,5.50322217,2622.5,2622.1,3.0]
[1724059347661,2.494,2622.4,2622.1,3.0]
[1724059347870,4.73085908,2622.4,2621.8,11.15405]
[1724059348195,2.2734,2622.1,2621.7,3.8143]
[1724059348851,0.89078191,2622.0,2621.7,3.8143]
[1724059349961,4.70472191,2622.0,2621.5,7.9189]
[1724059350165,4.70472191,2622.0,2621.6,3.0]
[1724059354278,3.81411,2621.9,2621.3,3.81483]
[1724059354575,10.82503191,2621.8,2621.4,3.0]
[1724059354796,7.01077191,2621.8,2621.3,3.0]
[1724059356321,3.81435,2621.7,2621.3,3.0]
[1724059356520,8.17381905,2621.8,2621.3,3.0]
[1724059356712,6.11999,2621.8,2621.4,1.636]
[1724059356920,0.89078191,2621.7,2621.4,1.636]
[1724059357295,6.11999,2621.8,2621.4,1.636]
[1724059357511,0.89078191,2621.6,2621.4,1.636]
[1724059357744,6.11999,2621.8,2621.4,1.636]
[1724059357922,0.89078191,2621.5,2621.4,1.636]
[1724059358224,3.81419,2621.8,2621.4,1.636]
[1724059358412,0.89078191,2621.5,2621.4,1.636]
[1724059359223,3.81419,2621.8,2621.4,1.636]
[1724059359436,0.89078191,2621.5,2621.4,3.104171]
[1724059359728,3.81419,2621.8,2621.4,4.636]
[1724059360016,3.81419,2621.8,2621.4,1.636]
[1724059360417,0.89078191,2621.7,2621.4,1.636]
[1724059360726,3.81419,2621.8,2621.4,1.636]
[1724059360939,0.89078191,2621.6,2621.4,1.636]
[1724059361235,0.89078191,2621.5,2621.4,1.636]
[1724059361920,3.81419,2621.8,2621.4,0.636]
[1724059362720,0.89078191,2621.7,2621.4,0.636]
[1724059363087,3.81419,2621.8,2621.4,0.636]
[1724059363534,0.89078191,2621.7,2621.4,0.636]
[1724059363832,3.81419,2621.8,2621.4,0.636]
[1724059364039,0.89078191,2621.6,2621.4,0.636]
[1724059364348,3.81419,2621.8,2621.4,0.636]
[1724059364561,0.89078191,2621.5,2621.4,0.636]
[1724059364765,3.81419,2621.8,2621.4,0.636]
[1724059364971,0.89078191,2621.5,2621.4,0.636]
[1724059365170,3.81419,2621.8,2621.4,0.636]
[1724059365377,0.89078191,2621.5,2621.4,0.636]
[1724059365577,3.81419,2621.8,2621.4,0.636]
[1724059366040,0.89078191,2621.7,2621.4,0.636]
[1724059366245,3.81419,2621.8,2621.4,0.636]
[1724059366558,0.89078191,2621.6,2621.4,1.636]
[1724059366764,3.81419,2621.8,2621.4,1.636]
[1724059366968,0.89078191,2621.5,2621.4,1.636]
[1724059367158,3.81419,2621.8,2621.4,1.636]
[1724059367353,0.89078191,2621.5,2621.3,6.81489]
[1724059367764,4.805136,2621.8,2621.3,6.81489]
[1724059367972,0.89078191,2621.4,2621.3,6.81489]
[1724059368189,3.81419,2621.8,2621.3,6.81489]
[1724059368382,0.89078191,2621.4,2621.3,7.901569]
[1724059368585,3.81419,2621.8,2621.3,6.81489]
[1724059368877,0.89078191,2621.4,2621.3,6.81489]
[1724059369084,3.81419,2621.8,2621.3,6.81489]
[1724059369259,0.89078191,2621.4,2621.3,6.81489]
[1724059369465,3.81419,2621.8,2621.3,8.283079]
[1724059369664,0.89078191,2621.4,2621.3,6.81489]
[1724059369975,3.81419,2621.8,2621.3,6.81489]
[1724059370176,0.89078191,2621.4,2621.3,6.81489]
[1724059370553,3.81419,2621.8,2621.3,6.81489]
[1724059370755,0.89078191,2621.4,2621.3,6.81489]
[1724059370971,3.81419,2621.8,2621.3,6.81489]
[1724059371183,0.89078191,2621.4,2621.3,6.81489]
[1724059371384,3.81419,2621.8,2621.3,6.81489]
[1724059371555,0.89078191,2621.4,2621.3,6.81489]
[1724059371755,3.81419,2621.8,2621.3,6.81489]
[1724059372081,4.968736,2621.8,2621.3,6.81489]
[1724059372252,0.89078191,2621.7,2621.3,6.81489]
[1724059372456,4.968736,2621.8,2621.3,6.81489]
[1724059372667,0.89078191,2621.6,2621.3,8.45089]
[1724059372885,4.968736,2621.8,2621.3,8.45089]
[1724059373274,0.89078191,2621.7,2621.3,8.45089]
[1724059373482,4.968736,2621.8,2621.3,12.26572]
[1724059373678,0.89078191,2621.6,2621.3,12.26572]
[1724059373986,3.81402,2621.9,2621.3,8.45083]
[1724059374187,0.89078191,2621.5,2621.3,12.26566]
[1724059374489,0.89078191,2621.4,2621.3,8.45083]
[1724059374694,4.98156378,2621.9,2621.3,8.45083]
[1724059374894,0.89078191,2621.4,2621.3,8.45083]
[1724059375115,4.98156378,2621.9,2621.3,8.45083]
[1724059375985,0.89078191,2621.4,2621.3,8.45083]
[1724059376160,3.81402,2621.9,2621.4,2.4342]
[1724059376692,3.81402,2621.9,2621.4,6.24894]
[1724059378259,0.79441662,2622.1,2621.7,3.81428]
[1724059378460,6.99901662,2622.2,2621.6,2.3319]
[1724059378659,1.55306416,2622.1,2621.6,2.3319]
[1724059379180,2.34748078,2622.1,2621.6,2.3319]
[1724059379554,6.16128078,2622.1,2621.6,6.14623]
[1724059381399,0.79441662,2622.0,2621.6,6.14623]
[1724059384327,0.79441662,2621.9,2621.6,6.14623]
[1724059385126,0.79441662,2621.9,2621.6,2.3319]
[1724059387195,6.44069716,2622.0,2621.6,2.3319]
[1724059387196,0.79441662,2621.8,2621.6,2.3319]
[1724059388143,0.79441662,2621.8,2621.5,1.636]
[1724059388344,0.79441662,2621.6,2621.4,2.4153]
[1724059390357,0.89078191,2621.5,2621.3,3.0]
[1724059390511,1.68519853,2621.5,2621.3,3.0]
[1724059390853,0.89078191,2621.5,2621.3,3.0]
[1724059391192,1.68519853,2621.5,2621.3,3.0]
[1724059392241,1.68519853,2621.5,2621.3,6.81483]
[1724059392547,0.89078191,2621.5,2621.3,6.81483]
[1724059392852,0.89078191,2621.5,2621.4,1.636]
[1724059393192,1.68519853,2621.5,2621.4,1.636]
[1724059393646,1.68519853,2621.5,2621.4,5.45075]
[1724059393837,0.89078191,2621.5,2621.4,11.7234]
[1724059393995,0.89078191,2621.5,2621.4,14.7234]
[1724059394198,0.79441662,2621.7,2621.6,2.4579]
[1724059394422,0.79441662,2621.7,2621.6,4.0939]
[1724059395595,1.19162493,2621.8,2621.6,4.0939]
[1724059395795,0.79918827,2621.7,2621.6,4.0939]
[1724059396435,0.79922818,2621.7,2621.6,4.0939]
[1724059396997,1.19162493,2621.8,2621.6,4.0939]
[1724059397342,0.79928575,2621.7,2621.6,4.0939]
[1724059398319,1.19162493,2621.7,2621.6,4.0939]
[1724059398525,1.19162493,2621.8,2621.6,4.0939]
[1724059399208,1.19162493,2621.7,2621.6,4.0939]
[1724059401355,1.19162493,2621.8,2621.6,4.0939]
[1724059401504,1.19162493,2621.7,2621.6,2.4579]
[1724059404144,1.19162493,2621.8,2621.6,2.4579]
[1724059404313,1.19162493,2621.7,2621.6,2.4579]
[1724059405348,2.08240684,2621.7,2621.6,2.4579]
[1724059405650,1.69020081,2621.7,2621.6,6.27236]
[1724059406005,0.89078191,2621.7,2621.6,6.27236]
[1724059406269,1.19162493,2621.8,2621.6,6.27236]
[1724059406437,0.89078191,2621.7,2621.6,6.27236]
[1724059406746,0.79941602,2621.8,2621.7,6.20691]
[1724059406951,0.79941602,2622.2,2622.1,2.3926]
[1724059407121,0.79941602,2622.3,2622.1,4.0286]
[1724059407327,0.79941602,2622.4,2622.3,3.81344]
[1724059407506,0.79941602,2622.4,2622.3,5.44944]
[1724059408286,0.79941602,2622.4,2622.3,1.636]
[1724059408446,0.79941602,2622.5,2622.3,5.44943]
[1724059408972,0.79941602,2622.5,2622.4,6.2968]
[1724059409124,1.19162493,2622.6,2622.4,6.2968]
[1724059409125,0.79941602,2622.6,2622.4,6.2968]
[1724059409332,0.79941602,2622.7,2622.5,1.636]
[1724059409650,0.79941602,2622.7,2622.6,3.813]
[1724059409809,0.79941602,2622.8,2622.7,2.4118]
[1724059410157,0.79941602,2622.9,2622.7,7.86066]